bitfinex-derivatives/quotes_ETHF0:USTF0_20260201
["timestamp","ask_amount","ask_price","bid_price","bid_amount"]
[1769941166089,2.65879475,2431.6,2430.4,4.06318705]
[1769941166295,2.45295475,2431.5,2430.2,0.00333947]
[1769941166495,39.25594233,2431.6,2430.2,4.06652652]
[1769941166496,2.65882475,2431.3,2430.2,4.06652652]
[1769941167097,0.20587,2431.3,2430.2,4.06652652]
[1769941167800,0.20587,2431.3,2428.5,6.03151437]
[1769941167801,39.25594233,2430.3,2428.2,4.06318705]
[1769941167997,2.43605722,2429.9,2428.2,4.06318705]
[1769941168591,2.44030681,2429.9,2428.2,4.06664139]
[1769941169005,0.20604,2429.2,2428.2,4.06664139]
[1769941169203,0.20604,2429.2,2428.2,0.00345434]
[1769941169204,2.62005,2429.1,2428.2,0.00345434]
[1769941170401,2.62005,2429.1,2426.8,4.116]
[1769941170402,0.41311373,2428.5,2426.8,4.116]
[1769941170802,0.41311373,2428.5,2427.1,8.22475815]
[1769941171197,0.41311373,2428.5,2427.1,0.00532851]
[1769941171198,2.414,2428.4,2427.1,0.00532851]
[1769941171398,2.82711373,2428.4,2427.2,8.22475815]
[1769941171606,0.41311373,2428.3,2427.1,0.00532851]
[1769941171902,2.62013,2428.2,2426.3,2.43605722]
[1769941172102,2.62013,2428.2,2426.3,10.66081537]
[1769941172299,2.62013,2428.2,2426.8,4.03791392]
[1769941172800,2.62375764,2428.2,2427.0,4.03791392]
[1769941173201,2.41762764,2428.2,2427.1,4.03791392]
[1769941173396,0.00362764,2428.2,2427.5,4.03791392]
[1769941173799,0.00362764,2428.2,2427.8,4.03791392]
[1769941174008,0.00362764,2428.2,2427.4,4.03791392]
[1769941174395,0.46858214,2428.2,2426.9,4.03791392]
[1769941174599,0.00362764,2428.2,2427.3,4.03791392]
[1769941175101,0.4649545,2428.8,2427.8,4.03791392]
[1769941175302,0.4649545,2428.5,2427.2,4.03791392]
[1769941175803,0.4649545,2428.5,2427.3,4.03791392]
[1769941175997,0.67466862,2428.5,2427.3,4.03791392]
[1769941176199,0.20971412,2428.5,2427.5,4.03791392]
[1769941176600,0.20971412,2428.5,2427.7,4.03791392]
[1769941177008,0.00361412,2428.5,2427.9,4.03791392]
[1769941177502,0.00361412,2428.5,2428.2,3.97438502]
[1769941177701,2.63,2428.8,2428.2,3.97438502]
[1769941178705,2.63527557,2428.8,2428.2,3.97438502]
[1769941178906,2.63527557,2428.8,2428.2,12.19914317]
[1769941180100,2.63527557,2428.8,2427.3,3.97438502]
[1769941180408,2.63527557,2428.8,2427.6,3.97438502]
[1769941180908,2.63527557,2428.8,2428.0,3.97438502]
[1769941181411,2.63527557,2428.8,2428.2,3.97438502]
[1769941181909,2.63527557,2428.8,2428.2,12.19914317]
[1769941184709,2.63527557,2428.8,2428.3,12.15296887]
[1769941184908,2.63527557,2428.8,2428.3,3.92821072]
[1769941185109,2.63527557,2428.8,2428.3,12.15296887]
[1769941185611,4.32505,2429.1,2428.5,3.92821072]
[1769941186711,4.32877288,2429.1,2428.5,3.93354854]
[1769941187306,0.20977288,2429.1,2428.5,3.93354854]
[1769941188610,0.20977288,2429.1,2428.7,3.92821072]
[1769941188806,0.20977288,2429.1,2428.4,3.92821072]
[1769941189007,0.20977288,2429.1,2428.1,3.92821072]
[1769941189008,0.20606,2429.0,2428.1,3.92821072]
[1769941189403,4.18683562,2428.5,2427.4,4.12]
[1769941190015,4.18683562,2428.5,2427.4,4.12317628]
[1769941190204,0.2061,2428.5,2427.4,4.12317628]
[1769941190411,3.98073562,2428.8,2427.4,4.12317628]
[1769941190611,4.18681562,2428.8,2427.4,4.12317628]
[1769941191511,4.18681562,2428.8,2427.5,3.92821072]
[1769941191711,4.18682562,2428.6,2427.4,0.00317628]
[1769941192016,3.98073562,2428.4,2427.4,3.931387]
[1769941192407,4.121,2428.7,2427.4,3.931387]
[1769941193117,8.10173562,2428.7,2427.4,3.931387]
[1769941193419,3.98073562,2428.6,2427.4,3.931387]
[1769941194609,6.55712308,2428.7,2427.4,3.931387]
[1769941194814,4.121,2428.7,2427.4,3.931387]
[1769941195211,4.121,2428.7,2427.5,3.92821072]
[1769941199815,6.55712308,2428.7,2427.5,3.92821072]
[1769941200119,2.43612308,2428.6,2427.5,3.92821072]
[1769941200517,4.121,2428.7,2427.5,3.92821072]
[1769941201412,0.00372288,2429.1,2427.6,3.92821072]
[1769941201622,0.00372288,2429.1,2427.8,3.92821072]
[1769941204117,3.9844585,2429.1,2427.8,3.92821072]
[1769941204514,3.98073562,2428.9,2427.8,3.92821072]
[1769941205217,40.80062073,2428.9,2427.8,3.92821072]
[1769941205420,36.81988511,2428.9,2427.8,3.92821072]
[1769941206121,36.81988511,2429.0,2427.8,3.92821072]
[1769941206518,40.80062073,2428.9,2427.8,3.92821072]
[1769941206821,3.98073562,2428.8,2427.8,3.92821072]
[1769941207021,7.62773562,2428.8,2427.8,3.92821072]
[1769941207222,40.80062073,2428.8,2427.8,3.92821072]
[1769941207522,3.98073562,2428.8,2427.8,3.92821072]
[1769941207724,40.80062073,2428.8,2427.8,3.92821072]
[1769941208527,3.89732322,2428.6,2427.5,4.04581701]
[1769941208722,3.89732322,2428.5,2427.5,4.04581701]
[1769941209523,40.71720833,2428.5,2427.5,4.04581701]
[1769941209720,3.89732322,2428.3,2427.4,0.00317628]
[1769941209925,3.668,2428.3,2427.4,4.04899329]
[1769941210326,36.81988511,2428.4,2427.4,4.04899329]
[1769941210933,36.81988511,2428.5,2427.4,4.04899329]
[1769941211331,36.81988511,2428.4,2427.4,4.04899329]
[1769941212227,40.71720833,2428.3,2427.4,4.04899329]
[1769941212627,36.81988511,2428.3,2427.4,4.04899329]
[1769941214133,40.54188511,2428.3,2427.4,4.04899329]
[1769941215934,44.43920833,2428.3,2427.4,4.04899329]
[1769941219236,40.71720833,2428.2,2427.4,4.04899329]
[1769941219738,40.54188511,2428.3,2427.4,4.04899329]
[1769941220541,36.81988511,2428.3,2427.4,4.04899329]
[1769941222443,40.64788511,2428.5,2427.4,4.04899329]
[1769941222943,36.81988511,2428.5,2427.4,4.04899329]
[1769941223543,36.81988511,2428.7,2427.5,4.04581701]
[1769941223732,40.71720833,2428.6,2427.7,4.04581701]
[1769941223940,3.89732322,2428.4,2427.5,4.04581701]
[1769941224338,3.89732322,2428.3,2427.5,4.04581701]
[1769941224640,3.89732322,2428.2,2427.4,0.00317628]
[1769941225043,3.89732322,2428.2,2427.4,4.04899329]
[1769941226240,3.89732322,2428.2,2427.4,0.00317628]
[1769941226742,3.89732322,2428.0,2427.2,4.121]
[1769941226936,4.90931801,2428.1,2427.3,4.04581701]
[1769941227140,12.70064123,2428.2,2427.3,4.04581701]
[1769941227341,7.79132322,2428.2,2427.3,4.04581701]
[1769941227539,7.79132322,2428.2,2427.3,4.0508706]
[1769941229147,3.89732322,2428.1,2427.3,4.0508706]
[1769941233950,3.89732322,2428.1,2427.3,0.00505359]
[1769941234545,3.89732322,2428.1,2427.3,4.0508706]
[1769941235352,6.13114687,2428.5,2427.3,4.0508706]
[1769941235648,3.89732322,2428.7,2427.5,4.04581701]
[1769941235944,3.89732322,2428.7,2427.6,4.04581701]
[1769941239750,3.87914671,2428.9,2427.6,4.04581701]
[1769941244559,3.87914671,2428.9,2427.7,3.81019178]
[1769941249153,7.67652034,2429.1,2427.7,6.26070493]
[1769941249358,3.76552034,2429.1,2427.8,3.81019178]
[1769941249553,0.00372288,2429.1,2427.8,3.81019178]
[1769941249747,9.89294433,2429.6,2428.2,3.81019178]
[1769941250056,3.76179746,2429.6,2428.4,3.81019178]
[1769941250855,0.00410669,2429.6,2428.4,3.81019178]
[1769941251056,0.00410669,2429.6,2428.6,3.81019178]
[1769941251255,3.76590415,2429.6,2428.6,3.81019178]
[1769941252348,0.20603,2429.4,2428.0,10.11431369]
[1769941252651,3.96782746,2429.3,2428.1,3.81019178]
[1769941263766,0.00410669,2429.6,2428.1,6.26070493]
[1769941263969,0.00410669,2429.6,2428.2,6.26070493]
[1769941264170,0.00410669,2429.6,2428.3,3.81019178]
[1769941264364,0.00410669,2429.6,2428.6,3.81019178]
[1769941264565,0.00410669,2429.6,2428.7,3.81019178]
[1769941264764,3.76179746,2430.0,2428.7,3.81019178]
[1769941265067,3.96779746,2429.7,2428.4,6.26070493]
[1769941265264,3.96779746,2429.7,2428.5,3.81019178]
[1769941265763,3.97158386,2429.7,2428.5,3.81019178]
[1769941265960,0.2097864,2429.7,2428.5,3.81019178]
[1769941266161,0.2097864,2429.7,2428.6,3.81019178]
[1769941266563,3.97158386,2429.7,2428.6,3.81019178]
[1769941266767,3.97158386,2429.7,2428.7,3.81019178]
[1769941268670,3.97158386,2429.7,2428.4,3.75715389]
[1769941270172,0.20601,2429.6,2428.4,3.75715389]
[1769941270373,4.00739165,2429.3,2428.3,4.399]
[1769941271876,4.21342165,2429.3,2428.3,4.399]
[1769941272367,4.21342165,2429.3,2428.2,3.75715389]
[1769941273073,4.00739165,2429.6,2428.2,3.75715389]
[1769941273574,4.21340165,2429.6,2428.2,3.75715389]
[1769941275674,4.21340165,2429.6,2428.3,3.75715389]
[1769941276077,0.0037864,2429.7,2428.4,6.20766704]
[1769941276374,0.0037864,2429.7,2428.6,3.75715389]
[1769941277177,0.0037864,2429.7,2428.7,3.75715389]
[1769941277376,0.0037864,2429.7,2428.7,6.20766704]
[1769941277580,0.0037864,2429.7,2428.8,3.75715389]
[1769941278773,10.34449852,2430.2,2428.8,3.75715389]
[1769941279873,10.34824156,2430.2,2428.8,3.75715389]
[1769941281282,4.21709469,2430.2,2428.8,3.75715389]
[1769941281673,10.34824156,2430.2,2428.8,3.75715389]
[1769941282282,4.21709469,2430.2,2428.8,3.75715389]
[1769941283685,0.00374304,2430.2,2429.0,3.75715389]
[1769941283884,4.01113469,2430.2,2429.0,3.75715389]
[1769941288583,4.01113469,2430.2,2429.0,6.20766704]
[1769941288584,0.00374304,2430.2,2429.0,6.20766704]
[1769941288787,0.00374304,2430.2,2429.1,3.75715389]
[1769941288980,0.00374304,2430.2,2429.1,3.76134729]
[1769941289185,4.01113469,2430.2,2429.1,3.76134729]
[1769941289384,4.01113469,2430.2,2429.2,3.75715389]
[1769941294084,4.00739165,2430.0,2429.2,3.75715389]
[1769941294284,4.00739165,2429.8,2429.1,0.0041934]
[1769941294890,4.21338165,2429.8,2429.1,0.0041934]
[1769941295188,4.00739165,2429.6,2428.4,3.75715389]
[1769941295986,4.00739165,2429.6,2428.4,3.76231018]
[1769941296189,0.20602,2429.5,2428.4,3.76231018]
[1769941296382,4.21341165,2429.5,2428.4,3.76231018]
[1769941298493,3.78456685,2429.8,2428.4,3.76231018]
[1769941299395,3.78456685,2429.7,2428.4,3.76231018]
[1769941302296,3.99058685,2429.5,2428.4,3.76231018]
[1769941306704,4.07868407,2429.3,2428.4,0.00515629]
[1769941307695,3.87265407,2429.1,2428.4,0.00515629]
[1769941307901,3.87265407,2428.9,2428.4,6.29e-06]
[1769941308105,3.87265407,2428.9,2428.0,3.67912877]
[1769941309096,3.87265407,2428.9,2428.0,3.68406603]
[1769941309308,4.07872407,2428.9,2428.0,0.00493726]
[1769941309506,3.87265407,2428.7,2428.0,0.00493726]
[1769941315608,0.20608,2428.8,2428.0,3.68406603]
[1769941315808,2.44478316,2429.6,2428.0,3.68406603]
[1769941315809,3.87265407,2429.2,2428.0,3.68406603]
[1769941316009,0.20603,2429.4,2428.0,3.68406603]
[1769941316407,3.87265407,2429.7,2428.2,3.67912877]
[1769941317008,8.19962407,2430.0,2428.2,3.67912877]
[1769941317206,3.87265407,2429.9,2428.2,3.67912877]
[1769941318006,3.87265407,2429.9,2428.3,3.67912877]
[1769941318207,3.87265407,2429.9,2428.5,3.67912877]
[1769941320713,4.32697,2430.0,2428.5,3.67912877]
[1769941321212,4.32697,2430.0,2428.6,3.67912877]
[1769941321413,4.32697,2430.0,2428.8,3.67912877]
[1769941322510,3.87265407,2429.9,2428.8,3.67912877]
[1769941322709,3.87265407,2429.9,2428.9,3.67912877]
[1769941325118,4.07865407,2429.7,2428.4,3.67912877]
[1769941325911,3.87265407,2429.5,2428.4,3.67912877]
[1769941329920,0.20601,2429.6,2428.4,3.67912877]
[1769941333021,8.00401953,2430.0,2428.5,4.05948148]
[1769941335524,3.88301953,2430.0,2428.5,4.05948148]
[1769941335921,3.88301953,2430.0,2428.7,4.05948148]
[1769941336723,4.08900953,2429.8,2428.7,4.05948148]
[1769941337127,3.88301953,2429.6,2428.7,4.05948148]
[1769941337627,3.88301953,2429.6,2428.5,4.05948148]
[1769941337823,4.08903953,2429.5,2428.5,4.05948148]
[1769941346627,6.13114687,2429.7,2428.5,4.05948148]
[1769941347025,3.88301953,2429.8,2428.7,4.05948148]
[1769941347224,6.33711687,2430.0,2428.7,4.05948148]
[1769941347429,10.2201364,2430.0,2428.8,4.05948148]
[1769941347722,10.2201364,2430.0,2428.9,4.05948148]
[1769941347723,4.08898953,2430.0,2428.9,4.05948148]
[1769941349033,4.12374304,2430.2,2429.0,4.05948148]
[1769941349430,0.00374304,2430.2,2429.0,4.05948148]
[1769941350335,3.88676257,2430.2,2429.0,4.05948148]
[1769941351731,8.81339886,2430.1,2429.0,4.05948148]
[1769941352120,3.88301953,2430.1,2429.0,4.05948148]
[1769941355733,4.93412237,2430.2,2429.0,4.05948148]
[1769941357434,0.00374304,2430.2,2429.0,4.05948148]
[1769941357829,0.00374304,2430.2,2429.1,3.9747838]
[1769941358037,4.93037933,2430.6,2429.3,3.9747838]
[1769941358234,3.84389993,2430.5,2429.5,3.9747838]
[1769941359035,3.84861679,2430.5,2429.5,3.9747838]
[1769941360931,3.84861679,2430.5,2429.4,4.739]
[1769941361132,8.98021926,2430.4,2429.3,3.9747838]
[1769941361331,3.84389993,2430.0,2429.1,3.9747838]
[1769941362837,0.20597,2430.1,2429.1,3.9747838]
[1769941364231,3.98558283,2430.1,2429.1,3.9747838]
[1769941371448,3.77961283,2430.0,2429.1,3.9747838]
[1769941372650,0.20597,2430.1,2429.1,3.9747838]
[1769941374051,4.93037933,2430.3,2429.1,3.9747838]
[1769941374246,4.93037933,2430.3,2429.3,4.04899956]
[1769941375942,4.93509619,2430.5,2429.3,6.16275713]
[1769941376147,4.93037933,2430.4,2429.4,4.04899956]
[1769941376748,3.77961283,2430.4,2429.4,4.04899956]
[1769941376948,3.77961283,2430.2,2429.4,4.04899956]
[1769941381846,3.98557283,2430.2,2429.2,4.04899956]
[1769941386660,3.98557283,2430.2,2428.9,6.1633765]
[1769941386859,3.77961283,2430.1,2429.0,4.04899956]
[1769941388363,10.04502566,2430.2,2429.0,4.04899956]
[1769941388561,3.70791879,2430.1,2429.0,4.04899956]
[1769941390360,6.33710687,2430.2,2429.0,4.04899956]
[1769941390559,0.20596,2430.2,2429.1,3.84317423]
[1769941390963,10.04502566,2430.2,2429.1,3.84317423]
[1769941391466,3.70791879,2430.1,2429.1,3.84317423]
[1769941392663,6.33710687,2430.2,2429.1,3.84317423]
[1769941392863,0.20596,2430.2,2429.1,3.84317423]
[1769941397671,3.91387879,2430.2,2429.2,3.84317423]
[1769941397866,3.70791879,2430.1,2429.2,3.84317423]
[1769941405380,3.70791879,2429.9,2429.2,3.84317423]
[1769941405576,3.70791879,2430.1,2429.2,3.84317423]
[1769941408280,9.83906566,2430.1,2429.2,3.84317423]
[1769941411584,3.70791879,2430.0,2429.2,3.84317423]
[1769941414783,6.33711687,2430.1,2429.2,3.84317423]
[1769941414983,0.20597,2430.1,2429.2,3.84317423]
[1769941421089,4.94207441,2430.0,2429.2,3.84317423]
[1769941421991,13.44092295,2430.5,2429.6,4.0017451]
[1769941422289,4.05779355,2430.5,2429.6,4.0017451]
[1769941426690,3.8560082,2430.1,2429.4,4.01199299]
[1769941432795,3.8560082,2430.1,2429.2,7.94920342]
[1769941432997,3.8560082,2429.9,2429.2,4.01199299]
[1769941433496,3.3560082,2429.9,2429.1,4.01199299]
[1769941434394,0.20596,2430.1,2429.1,5.59486057]
[1769941434592,0.20596,2430.1,2429.2,4.01199299]
[1769941435489,4.0619682,2430.1,2429.2,4.01199299]
[1769941436700,3.8560082,2429.9,2429.0,7.95002784]
[1769941437195,3.8560082,2429.9,2429.1,4.01199299]
[1769941438696,4.0619682,2430.1,2429.1,1.58286758]
[1769941438902,4.0619682,2430.1,2429.2,4.01199299]
[1769941439303,3.8560082,2429.9,2429.2,4.01199299]
[1769941440299,3.8560082,2429.9,2429.0,6.4193731]
[1769941440504,3.8560082,2429.9,2428.9,11.23049083]
[1769941440798,3.8560082,2429.9,2429.0,4.01199299]
[1769941443604,4.0619682,2430.1,2429.2,4.01199299]
[1769941443804,0.20596,2430.1,2429.4,4.01199299]
[1769941444200,4.0619682,2430.1,2429.4,4.01199299]
[1769941445000,0.20596,2430.1,2429.4,4.01199299]
[1769941445303,3.8560082,2430.4,2429.4,4.01199299]
[1769941446499,3.8560082,2430.1,2429.1,4.01199299]
[1769941446800,3.8560082,2429.7,2429.0,4.01199299]
[1769941447506,4.01457637,2429.5,2428.9,2.45849784]
[1769941447696,4.01457637,2429.5,2428.7,4.03727256]
[1769941447903,4.01457637,2429.3,2428.6,3.79897917]
[1769941448204,1.58286758,2429.7,2428.4,3.79897917]
[1769941448205,4.01457637,2429.1,2428.4,3.79897917]
[1769941449406,4.01457637,2429.1,2428.2,3.79897917]
[1769941449906,4.01457637,2429.3,2428.3,3.79897917]
[1769941452412,4.01457637,2429.1,2428.3,3.79897917]
[1769941452709,4.01457637,2429.1,2428.1,3.79897917]
[1769941455306,4.01457637,2429.1,2428.0,0.00493726]
[1769941455307,4.01457637,2428.9,2428.0,0.00493726]
[1769941456013,4.01457637,2428.7,2428.0,0.00493726]
[1769941456212,4.01907761,2428.7,2428.0,0.00493726]
[1769941456412,0.00450124,2428.7,2428.2,3.79897917]
[1769941457912,4.01457637,2429.1,2428.2,3.79897917]
[1769941458707,4.01793622,2429.1,2428.2,3.79897917]
[1769941459910,0.00335985,2429.1,2428.4,3.79897917]
[1769941461206,0.20601,2429.6,2428.4,3.79897917]
[1769941461412,4.01457637,2429.7,2428.4,3.79897917]
[1769941462011,4.22053637,2430.1,2428.6,3.79897917]
[1769941462208,4.22365903,2430.1,2428.6,6.25747701]
[1769941462406,4.22365903,2430.1,2428.8,3.79897917]
[1769941463209,0.20908266,2430.1,2428.8,3.79897917]
[1769941463504,0.20908266,2430.1,2428.8,6.25747701]
[1769941463703,0.20908266,2430.1,2428.9,8.08297917]
[1769941463704,0.00312266,2430.1,2428.9,8.08297917]
[1769941463910,0.00312266,2430.1,2429.0,3.79897917]
[1769941466609,0.00312266,2430.1,2429.1,4.781]
[1769941466809,0.00312266,2430.1,2429.2,3.79897917]
[1769941469618,4.01769903,2430.1,2429.2,3.79897917]
[1769941477823,0.00312266,2430.1,2429.2,3.79897917]
[1769941480723,3.96112181,2430.1,2429.2,3.79897917]
[1769941484524,4.05872353,2429.9,2429.2,3.79897917]
[1769941484718,4.05872353,2429.9,2428.9,3.71080197]
[1769941490424,0.20598,2430.0,2428.9,5.29360469]
[1769941490725,0.20598,2430.0,2429.0,3.71080197]
[1769941491126,0.20598,2430.0,2429.0,6.16929981]
[1769941491327,0.20598,2430.0,2429.1,3.71080197]
[1769941491827,0.20598,2430.0,2429.1,7.58081484]
[1769941492128,0.20598,2430.0,2429.2,3.71080197]
[1769941496227,4.26470353,2430.0,2429.2,3.71080197]
[1769941499427,0.00312266,2430.1,2429.2,3.71080197]
[1769941499634,4.05872353,2430.4,2429.5,3.71080197]
[1769941500543,4.06242724,2430.4,2429.5,3.71080197]
[1769941500947,0.00370371,2430.4,2429.7,3.71080197]
[1769941501142,4.05872353,2430.9,2430.0,3.71080197]
[1769941501641,8.38360353,2431.1,2430.0,3.71080197]
[1769941502042,4.05872353,2431.0,2430.0,3.71388618]
[1769941502444,0.21096407,2431.1,2430.0,6.16678296]
[1769941502640,0.21096407,2431.1,2430.1,3.71080197]
[1769941503046,4.2696876,2431.1,2430.1,3.71080197]
[1769941504140,4.0638076,2431.1,2430.3,3.71080197]
[1769941504639,4.05872353,2431.4,2430.3,3.71080197]
[1769941504841,4.05872353,2431.4,2430.4,3.71080197]
[1769941505037,4.05872353,2431.4,2430.6,3.71080197]
[1769941505840,4.06316131,2431.4,2430.6,3.71080197]
[1769941506244,0.00443778,2431.4,2430.6,3.71080197]
[1769941506449,4.05872353,2431.6,2430.6,3.71080197]
[1769941506748,4.05872353,2431.4,2430.3,3.71080197]
[1769941506939,4.26458353,2431.4,2430.3,3.71080197]
[1769941507140,3.9781304,2431.1,2430.1,3.71080197]
[1769941507343,4.1891391,2431.1,2430.0,0.00308421]
[1769941507849,3.9832591,2431.1,2430.2,3.67282689]
[1769941510341,3.9832591,2431.1,2430.0,3.6759111]
[1769941510543,3.9832591,2431.1,2430.1,3.67282689]
[1769941513755,3.9832591,2431.1,2430.0,0.00308421]
[1769941514850,3.9832591,2431.1,2430.0,3.6759111]
[1769941516653,3.9781304,2430.9,2430.0,3.6759111]
[1769941517455,3.9781304,2430.9,2430.0,0.00308421]
[1769941519961,4.1840304,2430.9,2430.0,0.00308421]
[1769941521963,3.9781304,2431.7,2430.5,3.67282689]
[1769941522265,3.9781304,2431.7,2430.6,7.64482689]
[1769941522864,3.98303724,2431.7,2430.7,3.67282689]
[1769941523065,4.18886724,2431.7,2430.7,3.67282689]
[1769941527265,3.9781304,2431.5,2430.4,3.67282689]
[1769941528161,3.98303724,2431.7,2430.4,3.67282689]
[1769941528359,0.00490684,2431.7,2430.6,3.67282689]
[1769941528565,0.00490684,2431.7,2430.6,6.12572367]
[1769941528764,0.00490684,2431.7,2430.7,3.67282689]
[1769941531860,0.00490684,2431.7,2430.8,3.67282689]
[1769941532661,3.9781304,2432.1,2431.1,3.67282689]
[1769941532863,3.9781304,2432.1,2431.3,3.67282689]
[1769941533668,3.98331391,2432.1,2431.3,3.67282689]
[1769941537365,3.98331391,2432.1,2431.2,4.772]
[1769941538072,3.74693352,2431.9,2430.8,3.75559824]
[1769941542970,3.74693352,2431.9,2430.9,3.75559824]
[1769941543273,0.20581,2432.0,2430.9,3.75559824]
[1769941543574,0.20581,2432.0,2431.0,4.02313437]
[1769941544275,3.99633544,2432.0,2431.0,4.02313437]
[1769941549373,3.99633544,2432.0,2431.1,4.02313437]
[1769941551384,3.99633544,2432.0,2431.1,6.46438144]
[1769941552077,3.99633544,2432.0,2431.2,4.2265036]
[1769941552277,3.99633544,2432.0,2431.1,2.44124707]
[1769941552580,3.99633544,2432.0,2431.0,2.44124707]
[1769941553577,3.79052544,2431.8,2431.0,2.44124707]
[1769941553780,3.79052544,2431.8,2430.9,2.44124707]
[1769941554274,3.79052544,2431.8,2430.8,11.24338144]
[1769941554477,3.79052544,2431.8,2430.8,6.46438144]
[1769941555184,3.79052544,2431.8,2430.8,4.02313437]
[1769941562385,3.79052544,2431.6,2430.6,6.46438144]
[1769941562585,3.79052544,2431.4,2430.6,4.02313437]
[1769941563384,3.99639544,2431.2,2430.4,4.12386152]
[1769941563581,3.79052544,2431.0,2430.2,4.02313437]
[1769941565282,3.79052544,2431.0,2430.0,10.38966301]
[1769941565988,3.79052544,2430.8,2430.0,0.00308421]
[1769941571292,3.94891172,2430.6,2429.6,3.79295986]
[1769941572392,3.74299172,2430.3,2429.2,5.37340429]
[1769941572584,3.74299172,2430.3,2429.3,3.79295986]
[1769941572788,3.74299172,2430.9,2430.1,3.79295986]
[1769941572995,0.20589,2431.0,2430.4,1.58044443]
[1769941573191,3.74299172,2431.5,2430.5,3.79295986]
[1769941573394,3.74587838,2431.5,2430.7,3.79295986]
[1769941573599,0.00288666,2431.5,2430.9,3.79295986]
[1769941576402,3.24587838,2431.6,2430.9,3.79295986]
[1769941577402,3.24893914,2431.6,2430.9,3.79295986]
[1769941582299,3.45478914,2431.6,2430.5,0.00353295]
[1769941582505,3.74299172,2431.4,2430.5,0.00353295]
[1769941583902,3.74299172,2431.4,2430.5,3.79649281]
[1769941586700,3.74299172,2431.4,2430.5,0.00353295]
[1769941586897,3.74299172,2431.0,2430.5,0.00353295]
[1769941587302,3.74299172,2431.0,2429.9,2.44446072]
[1769941587303,3.94888172,2431.0,2429.9,3.79295986]
[1769941587602,3.74299172,2430.8,2429.9,3.79295986]
[1769941588001,3.94890172,2430.8,2429.7,3.79295986]
[1769941588202,3.94890172,2430.8,2429.7,3.79587205]
[1769941592005,0.20591,2430.8,2429.7,3.79587205]
[1769941592199,3.74299172,2431.3,2429.8,3.79295986]
[1769941592398,3.74299172,2431.3,2430.0,3.79295986]
[1769941594304,3.94885172,2431.3,2430.0,3.79295986]
[1769941596610,3.74299172,2430.9,2430.0,3.79295986]
[1769941598406,3.74299172,2430.9,2429.8,3.72299945]
[1769941600109,3.99057395,2430.7,2429.8,3.72299945]
[1769941600308,4.19649395,2430.7,2429.7,0.00291219]
[1769941601705,3.99057395,2430.5,2429.7,0.00291219]
[1769941603409,4.19651395,2430.5,2429.7,0.00291219]
[1769941603815,4.20814901,2431.1,2429.7,3.67249138]
[1769941604013,4.20814901,2431.1,2429.8,3.66957919]
[1769941604509,4.00226901,2431.3,2430.1,3.66957919]
[1769941604714,4.00226901,2431.5,2430.1,3.66957919]
[1769941605103,4.00226901,2431.5,2430.2,3.66957919]
[1769941608114,0.00306076,2431.6,2430.4,3.66957919]
[1769941608816,0.00306076,2431.6,2430.4,6.11403991]
[1769941609010,0.00306076,2431.6,2430.5,3.66957919]
[1769941609318,0.00306076,2431.6,2430.7,3.66957919]
[1769941609816,4.00226901,2432.0,2430.7,3.66957919]
[1769941610712,4.00748601,2432.0,2430.7,3.66957919]
[1769941613312,4.00748601,2432.0,2430.8,3.66957919]
[1769941613918,4.00748601,2432.0,2430.9,3.66957919]
[1769941614916,4.21329601,2432.0,2430.9,3.66957919]
[1769941615223,4.00226901,2431.8,2430.7,3.66957919]
[1769941617023,4.20808901,2431.8,2430.7,3.66957919]
[1769941621423,0.005217,2432.0,2430.7,3.66957919]
[1769941626926,0.005217,2432.0,2430.7,6.11403991]
[1769941627124,0.005217,2432.0,2430.9,3.66957919]
[1769941628323,3.8930572,2432.0,2430.9,3.66957919]
[1769941629130,4.0988572,2432.0,2430.9,3.66957919]
[1769941636828,3.8878402,2431.8,2430.9,3.66957919]
[1769941642836,3.8878402,2431.8,2430.7,3.69635288]
[1769941643041,4.0936802,2431.6,2430.7,3.69635288]
[1769941644432,4.0936802,2431.6,2430.5,3.69635288]
[1769941652339,3.8878402,2431.4,2430.5,3.69635288]
[1769941653441,4.0937002,2431.4,2430.5,3.69635288]
[1769941659049,4.0937002,2431.4,2430.2,3.93524521]
[1769941659649,4.0937002,2431.4,2430.3,3.93524521]
[1769941665345,4.2374241,2431.2,2430.3,3.93524521]
[1769941666949,4.2374241,2431.2,2430.1,6.13051459]
[1769941667149,4.2374241,2431.2,2430.2,3.68605387]
[1769941671553,1.58152432,2431.1,2430.2,3.68605387]
[1769941671853,4.0315541,2431.0,2430.2,3.68605387]
[1769941677949,4.2374241,2431.2,2430.3,3.68605387]
[1769941678256,0.20587,2431.2,2430.5,3.68605387]
[1769941679657,13.12396764,2431.8,2430.7,3.68605387]
[1769941679857,5.81890842,2431.8,2430.7,3.68605387]
[1769941680256,4.0315541,2431.7,2430.7,3.68605387]
[1769941680856,0.20583,2431.8,2430.9,3.68605387]
[1769941681351,0.005217,2432.0,2431.3,3.68605387]
[1769941690664,3.99066406,2431.7,2430.7,6.54001402]
[1769941690965,3.99066406,2431.7,2430.6,5.25590296]
[1769941690966,3.99066406,2431.7,2430.8,3.66802718]
[1769941698271,3.99066406,2431.5,2430.8,3.66802718]
[1769941709277,3.99066406,2431.5,2430.8,3.66802718]
[1769941709678,4.19649406,2431.7,2430.8,3.66802718]
[1769941710179,0.20583,2431.7,2430.8,3.66802718]
[1769941710877,4.19649406,2431.7,2430.8,3.66802718]
[1769941715280,0.20583,2431.7,2430.8,3.66802718]
[1769941716987,4.19649406,2431.7,2430.8,3.66802718]
[1769941719688,3.98863396,2431.5,2430.6,6.35357218]
[1769941720190,3.98863396,2431.5,2430.7,3.8990291]
[1769941725684,0.20584,2431.6,2430.7,3.8990291]
[1769941727588,0.20584,2431.6,2430.7,6.35357218]
[1769941727891,0.20584,2431.6,2430.8,3.6951137]
[1769941732194,0.20584,2431.6,2430.8,6.14965678]
[1769941732396,0.20584,2431.6,2430.8,3.6951137]
[1769941732796,0.20584,2431.6,2431.0,3.6951137]
[1769941735393,3.80417244,2432.0,2431.0,3.6951137]
[1769941737596,0.005217,2432.0,2431.0,3.6951137]
[1769941740500,0.005217,2432.0,2431.0,6.15075367]
[1769941740803,0.005217,2432.0,2431.1,3.6951137]
[1769941741299,0.005217,2432.0,2431.2,3.6951137]
[1769941746507,0.005217,2432.0,2431.2,6.15075367]
[1769941746700,0.005217,2432.0,2431.3,7.98963922]
[1769941746998,0.005217,2432.0,2431.4,3.6951137]
[1769941750007,5.43442727,2432.5,2431.4,3.6951137]
[1769941750307,3.85335038,2432.5,2431.4,3.6951137]
[1769941751107,3.85671884,2432.5,2431.4,3.6951137]
[1769941754611,3.85335038,2432.4,2431.4,3.6951137]
[1769941755607,3.85335038,2431.6,2431.0,3.68465124]
[1769941756908,3.85335038,2431.9,2431.0,3.68465124]
[1769941758812,4.05916038,2431.9,2431.0,3.68465124]
[1769941759510,4.05916038,2431.9,2430.7,3.68465124]
[1769941763616,5.43463275,2431.5,2430.7,3.68465124]
[1769941764405,3.85335038,2431.4,2430.7,3.68465124]
[1769941764605,5.43463275,2431.3,2430.7,3.68465124]
[1769941768417,3.85335038,2431.2,2430.7,3.68465124]